bitfinex/quotes_SOLUSD_20240615
["timestamp","ask_amount","ask_price","bid_price","bid_amount"]
[1718454445402,5.68,144.36,144.33,16.6574]
[1718454446828,5.68,144.35,144.33,16.6574]
[1718454447208,5.68,144.34,144.33,16.6574]
[1718454448018,5.68,144.35,144.33,16.6574]
[1718454449628,7.22487805,144.41,144.33,16.6574]
[1718454449812,5.68,144.38,144.34,6.3973]
[1718454450131,0.20635046,144.37,144.34,7.36301801]
[1718454450825,0.20635046,144.37,144.34,6.3973]
[1718454451000,0.20635046,144.37,144.35,6.65869087]
[1718454451197,0.20635046,144.37,144.36,0.63864662]
[1718454451403,0.20635046,144.37,144.35,0.34]
[1718454451710,0.20635046,144.37,144.35,1.72515676]
[1718454452431,0.20635046,144.37,144.35,0.34]
[1718454453312,0.20635046,144.37,144.34,12.0773]
[1718454453313,0.20635046,144.37,144.34,6.3973]
[1718454455499,0.20635046,144.37,144.35,1.38531839]
[1718454457510,0.20635046,144.37,144.34,6.3973]
[1718454459121,0.20635046,144.37,144.35,0.36706855]
[1718454459628,0.20635046,144.37,144.34,6.3973]
[1718454459932,0.20635046,144.37,144.33,16.6574]
[1718454460100,5.88635046,144.37,144.33,16.6574]
[1718454460427,5.88635046,144.37,144.34,0.50446126]
[1718454460622,5.88635046,144.37,144.33,16.6574]
[1718454461123,5.68,144.36,144.33,16.6574]
[1718454461326,5.68,144.35,144.33,16.6574]
[1718454462212,100.0,144.41,144.33,16.6574]
[1718454462422,5.68,144.37,144.33,16.6574]
[1718454463740,5.68,144.36,144.33,16.6574]
[1718454464046,5.68,144.35,144.33,16.6574]
[1718454465414,5.68,144.36,144.33,16.6574]
[1718454474737,5.68,144.35,144.3,14.15637826]
[1718454474935,0.17,144.4,144.3,14.15637826]
[1718454474936,5.68,144.33,144.3,6.1404]
[1718454475441,0.17,144.38,144.3,6.1404]
[1718454475623,5.68,144.34,144.3,6.1404]
[1718454477038,5.68,144.33,144.3,6.1404]
[1718454477418,5.68,144.33,144.29,15.6882]
[1718454479034,5.68,144.32,144.29,15.6882]
[1718454479459,5.68,144.33,144.29,15.6882]
[1718454479756,5.68,144.32,144.29,15.6882]
[1718454480258,5.68,144.33,144.29,15.6882]
[1718454481757,15.9992,144.38,144.29,15.6882]
[1718454481934,5.68,144.33,144.29,15.6882]
[1718454482134,15.9992,144.38,144.3,5.68]
[1718454482135,5.68,144.35,144.3,5.68]
[1718454482341,16.1176,144.41,144.31,5.68]
[1718454482525,5.68,144.37,144.31,5.68]
[1718454484854,0.17,144.4,144.31,5.68]
[1718454485032,5.68,144.37,144.31,5.68]
[1718454485530,5.68,144.37,144.3,6.0135]
[1718454486966,5.68,144.36,144.3,6.0135]
[1718454487771,5.68,144.34,144.3,6.0135]
[1718454488456,5.68,144.35,144.3,6.0135]
[1718454490452,5.68,144.36,144.3,11.6935]
[1718454490943,0.17,144.39,144.3,11.6935]
[1718454491150,5.68,144.37,144.31,5.68]
[1718454491348,5.68,144.38,144.32,5.68]
[1718454492039,5.68,144.38,144.33,0.36083552]
[1718454492243,5.68,144.38,144.32,5.68]
[1718454492555,41.3999,144.41,144.31,5.68]
[1718454492737,38.8376,144.41,144.31,5.68]
[1718454492945,5.68,144.37,144.32,5.68]
[1718454493147,5.68,144.38,144.33,16.371]
[1718454493569,0.17,144.41,144.33,16.371]
[1718454493737,5.68,144.38,144.33,22.051]
[1718454494654,5.68,144.38,144.33,16.371]
[1718454494860,5.68,144.38,144.33,22.051]
[1718454495770,5.68,144.38,144.34,1.38314824]
[1718454495936,7.6861,144.42,144.33,16.371]
[1718454496137,25.2822,144.41,144.33,16.371]
[1718454496338,25.6201,144.42,144.33,16.371]
[1718454496533,5.68,144.38,144.33,16.371]
[1718454498051,22.72,144.41,144.33,16.371]
[1718454499181,0.34,144.4,144.33,16.371]
[1718454500460,2.9023,144.4,144.33,16.371]
[1718454500765,0.34,144.4,144.33,16.371]
[1718454501263,0.34,144.4,144.3,6.0135]
[1718454501264,5.68,144.34,144.3,6.0135]
[1718454502368,5.68,144.35,144.3,6.0135]
[1718454502675,5.68,144.35,144.3,11.6935]
[1718454503046,116.8234,144.4,144.3,11.6935]
[1718454503543,5.68,144.35,144.3,11.6935]
[1718454504755,119.3857,144.4,144.3,11.6935]
[1718454505070,5.68,144.36,144.3,11.6935]
[1718454505454,5.68,144.35,144.3,6.0135]
[1718454505756,124.5103,144.4,144.3,6.0135]
[1718454505958,5.68,144.35,144.3,6.0135]
[1718454506774,0.17,144.37,144.3,6.0135]
[1718454507070,5.68,144.33,144.3,6.0135]
[1718454507278,0.34,144.37,144.3,6.0135]
[1718454507579,5.68,144.33,144.3,6.0135]
[1718454508479,5.68,144.32,144.3,6.0135]
[1718454510579,5.68,144.33,144.3,6.0135]
[1718454511473,5.68,144.33,144.29,16.1067]
[1718454511676,5.68,144.31,144.29,16.1067]
[1718454512356,5.68,144.31,144.27,6.0399]
[1718454515301,5.68,144.34,144.27,6.0399]
[1718454515456,5.68,144.3,144.27,6.0399]
[1718454516362,5.68,144.3,144.26,15.4608]
[1718454521060,0.17,144.33,144.26,15.4608]
[1718454521478,5.68,144.3,144.26,15.4608]
[1718454524487,5.68,144.29,144.26,15.4608]
[1718454524667,0.17,144.33,144.26,15.4608]
[1718454524867,5.68,144.29,144.26,15.4608]
[1718454525683,0.17,144.33,144.26,15.4608]
[1718454525886,5.68,144.3,144.26,15.4608]
[1718454526501,5.68,144.3,144.26,14.9608]
[1718454530994,5.68,144.33,144.28,5.68]
[1718454531298,5.68,144.34,144.28,5.68]
[1718454531597,5.68,144.33,144.27,12.2418]
[1718454532289,5.68,144.32,144.27,6.5618]
[1718454535299,5.68,144.33,144.27,12.2418]
[1718454535600,5.68,144.33,144.28,5.68]
[1718454535910,5.68,144.33,144.28,7.06590476]
[1718454536108,0.17,144.38,144.28,7.06590476]
[1718454536393,5.68,144.34,144.29,5.68]
[1718454536585,23.67008336,144.4,144.31,16.5226]
[1718454536764,30.4066,144.41,144.32,7.94731381]
[1718454536972,5.68,144.37,144.33,1.3855089]
[1718454537417,5.68,144.38,144.33,7.0655089]
[1718454537631,2.562,144.42,144.33,7.0655089]
[1718454537935,5.68,144.39,144.33,7.0655089]
[1718454538223,5.68,144.37,144.32,12.2418]
[1718454538397,2.5623,144.4,144.32,12.2418]
[1718454538594,5.68,144.37,144.32,12.2418]
[1718454538793,5.68,144.37,144.32,6.5618]
[1718454539400,5.68,144.37,144.32,12.2418]
[1718454539917,7.8566,144.41,144.32,12.2418]
[1718454540120,5.68,144.37,144.32,12.2418]
[1718454540430,30.4066,144.41,144.32,12.2418]
[1718454540431,0.17,144.41,144.33,7.06543388]
[1718454540630,5.68,144.39,144.33,7.06543388]
[1718454544427,5.68,144.37,144.33,1.38543388]
[1718454546008,5.68,144.41,144.33,1.38543388]
[1718454546214,5.68,144.38,144.33,7.06543388]
[1718454546411,0.34,144.42,144.33,7.06543388]
[1718454546703,5.68,144.39,144.33,7.06543388]
[1718454547008,5.68,144.38,144.33,1.38543388]
[1718454547215,5.68,144.37,144.32,12.4118]
[1718454548603,2.5622,144.41,144.32,12.4118]
[1718454548822,5.68,144.37,144.32,12.4118]
[1718454549601,5.68,144.37,144.32,12.2418]
[1718454549933,5.68,144.34,144.32,6.5618]
[1718454550302,0.33333333,144.33,144.32,6.5618]
[1718454562971,0.33333333,144.33,144.31,16.5226]
[1718454572991,0.33333333,144.33,144.3,1.3857695]
[1718454573164,6.01333333,144.33,144.28,38.38636673]
[1718454574257,0.33333333,144.33,144.29,5.68]
[1718454577989,0.33333333,144.33,144.3,5.68]
[1718454578888,0.33333333,144.33,144.28,138.89636673]
[1718454579069,0.33333333,144.33,144.29,0.51]
[1718454580183,0.33333333,144.33,144.31,5.68]
[1718454581164,0.33333333,144.33,144.3,5.68]
[1718454581492,0.33333333,144.33,144.29,5.85]
[1718454581667,0.33333333,144.33,144.29,5.68]
[1718454582274,0.33333333,144.33,144.28,38.38636673]
[1718454582590,0.33333333,144.33,144.28,44.06636673]
[1718454583289,0.33333333,144.33,144.28,38.38636673]
[1718454583493,0.33333333,144.33,144.28,44.06636673]
[1718454585968,0.33333333,144.33,144.28,38.38636673]
[1718454586286,0.33333333,144.33,144.28,44.06636673]
[1718454588086,0.33333333,144.33,144.29,5.68]
[1718454591204,0.33333333,144.33,144.3,1.38477075]
[1718454592574,0.33333333,144.33,144.3,7.06477075]
[1718454593188,0.33333333,144.33,144.3,1.38477075]
[1718454593677,0.33333333,144.33,144.31,5.68]
[1718454593877,0.33333333,144.33,144.32,1.38553872]
[1718454595398,0.33333333,144.33,144.29,0.34]
[1718454595582,0.33333333,144.33,144.3,5.68]
[1718454597505,0.33333333,144.33,144.29,0.34]
[1718454597698,0.33333333,144.33,144.3,5.68]
[1718454598990,0.33333333,144.33,144.29,0.34]
[1718454599204,0.33333333,144.33,144.3,5.68]
[1718454599599,0.33333333,144.33,144.29,6.02]
[1718454600412,0.33333333,144.33,144.3,5.68]
[1718454601221,0.33333333,144.33,144.29,6.02]
[1718454601406,0.33333333,144.33,144.29,5.68]
[1718454601612,0.33333333,144.33,144.28,32.04886673]
[1718454602088,0.33333333,144.33,144.28,37.72886673]
[1718454602290,0.33333333,144.33,144.28,21.45886673]
[1718454603220,0.33333333,144.33,144.28,13.7710653]
[1718454603398,0.33333333,144.33,144.28,8.0910653]
[1718454603596,0.33333333,144.33,144.28,13.7710653]
[1718454604108,0.33333333,144.33,144.28,8.0910653]
[1718454604309,0.33333333,144.33,144.28,13.7710653]
[1718454605194,0.33333333,144.33,144.29,5.68]
[1718454606219,0.33333333,144.33,144.28,8.0910653]
[1718454606397,0.33333333,144.33,144.29,5.68]
[1718454609318,6.01333333,144.33,144.28,8.0910653]
[1718454609525,6.01333333,144.33,144.27,0.34]
[1718454609727,6.01333333,144.33,144.27,5.68]
[1718454611398,6.01333333,144.33,144.26,0.34]
[1718454611598,5.68,144.32,144.26,0.34]
[1718454611798,5.68,144.31,144.26,6.02]
[1718454612009,5.68,144.31,144.26,0.34]
[1718454612214,5.68,144.31,144.26,6.02]
[1718454613330,15.9105,144.32,144.24,8.0910653]
[1718454613531,5.68,144.3,144.25,5.68]
[1718454616228,5.68,144.3,144.24,8.0910653]
[1718454616419,5.68,144.3,144.25,5.68]
[1718454616824,5.68,144.3,144.24,8.0910653]
[1718454617015,5.68,144.3,144.24,13.7710653]
[1718454617211,5.68,144.3,144.24,8.0910653]
[1718454617410,5.68,144.3,144.24,13.7710653]
[1718454617619,5.68,144.3,144.23,5.70356823]
[1718454617620,5.68,144.28,144.22,5.68]
[1718454618521,6.4315,144.3,144.25,5.68]
[1718454618726,6.4315,144.3,144.26,5.68]
[1718454619633,6.4315,144.3,144.25,5.68]
[1718454619837,6.4315,144.3,144.26,0.75982891]
[1718454622042,12.1115,144.3,144.23,8.2610653]
[1718454622214,12.1115,144.3,144.24,5.68]
[1718454622919,6.4315,144.3,144.24,5.68]
[1718454623248,6.4315,144.3,144.25,5.68]
[1718454623569,15.9105,144.32,144.27,5.68]
[1718454623833,15.9105,144.32,144.29,5.68]
[1718454624038,15.9105,144.32,144.3,1.38223215]
[1718454626934,15.9105,144.32,144.29,5.68]
[1718454627237,21.5905,144.32,144.26,0.17]
[1718454627416,21.5905,144.32,144.26,5.85]
[1718454627622,5.68,144.31,144.25,5.68]
[1718454627826,5.68,144.3,144.25,5.68]
[1718454628046,5.68,144.3,144.22,115.77886673]
[1718454628229,5.68,144.3,144.25,5.68]
[1718454629121,15.9105,144.32,144.25,5.68]
[1718454629335,5.68,144.31,144.25,5.68]
[1718454629547,21.5905,144.32,144.26,5.68]
[1718454630250,5.68,144.31,144.25,5.68]
[1718454630549,5.68,144.3,144.25,5.68]
[1718454633026,5.68,144.3,144.24,0.17]
[1718454633222,5.68,144.3,144.25,5.68]
[1718454636939,5.68,144.28,144.22,13.7710653]
[1718454638153,5.18,144.28,144.22,13.7710653]
[1718454638766,5.18,144.28,144.23,5.68]
[1718454638946,5.68,144.29,144.23,5.68]
[1718454639145,5.68,144.29,144.22,8.0910653]
[1718454639359,5.68,144.29,144.24,5.68]
[1718454640034,5.68,144.29,144.25,1.3828065]
[1718454640234,21.1966,144.28,144.22,8.0910653]
[1718454640435,5.68,144.27,144.21,12.27419419]
[1718454640630,5.68,144.27,144.21,5.68]
[1718454646167,15.5166,144.28,144.21,5.68]
[1718454646544,5.68,144.27,144.22,5.68]
[1718454647337,5.68,144.27,144.19,1.38646304]
[1718454647647,5.68,144.27,144.22,5.68]
[1718454647847,5.68,144.27,144.23,1.38614243]
[1718454648450,5.68,144.27,144.22,5.68]
[1718454648650,5.68,144.27,144.21,5.68]
[1718454649164,5.68,144.27,144.2,0.51]
[1718454649350,5.68,144.27,144.21,5.68]
[1718454650476,5.68,144.27,144.2,0.17]
[1718454650649,5.68,144.27,144.21,5.68]
[1718454650843,5.68,144.26,144.21,5.68]
[1718454653264,5.68,144.26,144.19,8.0910653]
[1718454653466,5.68,144.26,144.2,1.38662249]
[1718454653873,5.68,144.26,144.2,7.06662249]
[1718454654254,6.5334,144.27,144.2,7.06662249]
[1718454654445,5.68,144.26,144.21,1.38652633]
[1718454655145,5.68,144.25,144.2,1.38652633]
[1718454657768,6.5334,144.27,144.2,1.38652633]
[1718454657769,6.5334,144.27,144.2,7.06652633]
[1718454657970,5.68,144.26,144.21,1.38662057]
[1718454658269,5.68,144.25,144.21,1.38662057]
[1718454660760,6.5334,144.27,144.21,1.38662057]
[1718454661079,5.68,144.25,144.21,1.38662057]
[1718454661845,6.5334,144.27,144.21,1.38662057]
[1718454662056,12.2134,144.27,144.22,5.68]
[1718454662274,12.2134,144.27,144.23,1.38642829]
[1718454663377,15.5166,144.28,144.23,1.38642829]
[1718454663587,15.5166,144.28,144.24,5.68]
[1718454664477,15.5166,144.28,144.23,5.68]
[1718454664878,21.1966,144.28,144.23,5.68]
[1718454666093,15.5166,144.28,144.23,5.68]
[1718454666291,6.196,144.31,144.22,100.17]
[1718454666464,6.196,144.31,144.25,5.68]
[1718454666465,11.876,144.31,144.25,5.68]
[1718454667391,6.196,144.31,144.26,1.38612947]
[1718454668491,0.33333333,144.3,144.26,1.38612947]
[1718454669193,0.33333333,144.3,144.28,5.68]
[1718454669374,0.33333333,144.3,144.29,7.06579994]
[1718454669700,0.33333333,144.3,144.24,13.06799419]
[1718454670001,0.33333333,144.3,144.27,5.68]
[1718454670204,0.33333333,144.3,144.26,5.68]
[1718454670503,0.33333333,144.3,144.27,5.85]
[1718454670812,0.33333333,144.3,144.28,5.68]
[1718454670990,0.33333333,144.3,144.29,1.38582723]
[1718454671909,0.33333333,144.3,144.29,1.38582691]
[1718454672073,0.33333333,144.3,144.27,5.68]
[1718454673012,0.33333333,144.3,144.28,5.68]
[1718454674204,0.33333333,144.3,144.29,0.50880554]
[1718454674599,0.33333333,144.3,144.29,6.18880554]
[1718454675188,0.33333333,144.3,144.29,5.68]
[1718454679292,0.33333333,144.3,144.29,6.02]
[1718454680614,0.33333333,144.3,144.29,0.34]
[1718454680813,0.33333333,144.3,144.28,0.51]
[1718454681108,0.33333333,144.3,144.29,5.68]
[1718454681315,0.33333333,144.3,144.29,6.19]
[1718454681885,0.33333333,144.3,144.29,106.36]
[1718454682614,0.33333333,144.3,144.29,127.16]
[1718454682807,0.33333333,144.3,144.29,121.48]
[1718454685725,0.33333333,144.3,144.29,129.5710653]
[1718454685887,0.33333333,144.3,144.29,135.2510653]
[1718454687757,0.33333333,144.3,144.29,142.93886673]
[1718454687931,0.33333333,144.3,144.29,149.53306092]
[1718454688429,0.33333333,144.3,144.29,156.03036092]
[1718454689028,1e-08,144.3,144.29,156.03036092]
[1718454689217,6.3781,144.38,144.31,100.0]
[1718454689415,6.3781,144.38,144.34,5.68]
[1718454690740,6.3781,144.38,144.33,5.68]
[1718454691635,12.0581,144.38,144.33,5.68]
[1718454692741,21.6079,144.4,144.34,5.68]
[1718454692946,21.6079,144.4,144.32,0.68]
[1718454693129,15.9279,144.4,144.35,5.68]
[1718454694912,15.9279,144.4,144.37,5.68]
[1718454695110,5.68,144.43,144.37,5.68]
[1718454695326,15.9279,144.45,144.38,6.02]
[1718454695327,5.68,144.44,144.38,6.02]
[1718454695536,5.68,144.44,144.38,5.68]
[1718454698246,15.9279,144.45,144.38,5.68]
[1718454698546,5.68,144.44,144.38,5.68]
[1718454698718,15.9279,144.45,144.39,0.17]
[1718454698924,15.9279,144.45,144.39,6.36]
[1718454699127,5.68,144.44,144.39,0.17]
[1718454699319,5.68,144.44,144.38,0.34]
[1718454699540,15.9279,144.45,144.38,0.34]
[1718454699760,5.68,144.44,144.38,0.34]
[1718454700631,15.9279,144.45,144.38,0.34]
[1718454700952,21.6079,144.45,144.38,0.34]
[1718454702936,15.9279,144.45,144.39,0.17]
[1718454703127,21.6079,144.45,144.39,0.17]
[1718454706054,21.6079,144.45,144.39,5.85]
[1718454707348,15.9279,144.45,144.39,5.85]
[1718454707653,21.6079,144.45,144.39,5.85]
[1718454708532,21.6079,144.45,144.39,0.17]
[1718454708734,21.6079,144.45,144.39,5.85]
[1718454711268,21.9158,144.48,144.41,5.68]
[1718454711435,5.68,144.47,144.41,5.68]
[1718454712352,5.68,144.47,144.42,1.17079362]
[1718454712532,5.68,144.46,144.41,5.68]
[1718454712927,5.68,144.46,144.4,5.68]
[1718454713329,24.4767,144.48,144.39,0.17]
[1718454713330,5.68,144.45,144.39,6.02]
[1718454713542,5.68,144.45,144.4,0.17]
[1718454714635,21.9158,144.48,144.4,0.17]
[1718454714956,5.68,144.45,144.4,0.17]
[1718454715559,5.68,144.46,144.4,5.85]
[1718454719643,5.68,144.44,144.39,5.85]
[1718454719837,5.68,144.44,144.39,5.68]
[1718454721765,5.68,144.42,144.36,23.51020143]
[1718454721964,5.68,144.42,144.36,29.19020143]
[1718454722271,5.68,144.42,144.36,23.51020143]
[1718454722466,5.68,144.43,144.37,5.68]
[1718454722675,21.9158,144.48,144.4,5.68]
[1718454722840,21.9158,144.48,144.36,144.31020143]
[1718454722841,5.68,144.46,144.41,5.68]
[1718454723041,15.6523,144.48,144.41,5.68]
[1718454723256,21.3323,144.48,144.42,5.68]
[1718454726786,21.614,144.52,144.41,16.4381]
[1718454726984,5.68,144.5,144.44,5.68]
[1718454727187,21.614,144.52,144.43,0.17]
[1718454727364,38.1119,144.55,144.44,100.0]
[1718454727674,5.68,144.52,144.47,5.68]
[1718454728946,5.68,144.52,144.48,1.38224343]
[1718454729254,15.3919,144.55,144.48,1.38224343]
[1718454729450,5.68,144.52,144.48,1.38224343]
[1718454729968,15.3919,144.55,144.48,1.38224343]
[1718454730363,5.68,144.52,144.48,1.38224343]
[1718454730678,5.68,144.53,144.48,1.38224343]
[1718454731454,15.3919,144.55,144.48,5.68]
[1718454731762,5.68,144.53,144.48,5.68]
[1718454732269,5.68,144.56,144.51,5.68]
[1718454733355,5.68,144.56,144.46,45.86460143]
[1718454733356,22.72,144.55,144.42,106.3468]
[1718454733556,22.72,144.55,144.42,22.7849]
[1718454733557,7.6812,144.51,144.42,22.7849]
[1718454733782,5.68,144.47,144.42,28.4649]
[1718454734357,5.68,144.47,144.42,22.7849]
[1718454734563,5.68,144.48,144.42,28.4649]
[1718454735062,5.68,144.46,144.41,8.0910653]
[1718454735275,5.68,144.46,144.38,128.45384342]
[1718454735276,5.68,144.45,144.38,122.7849]
[1718454735482,38.1119,144.48,144.39,5.68]
[1718454735778,5.68,144.46,144.4,5.68]
[1718454736188,5.68,144.44,144.38,30.8759653]
[1718454736370,5.68,144.44,144.38,36.5559653]
[1718454737278,21.0719,144.48,144.39,0.17]
[1718454737279,5.68,144.46,144.39,0.17]
[1718454737458,5.68,144.46,144.4,5.68]
[1718454737654,5.68,144.46,144.41,0.17]
[1718454738069,5.68,144.45,144.39,0.17]
[1718454738362,5.68,144.45,144.39,6.02]
[1718454738561,5.68,144.44,144.39,0.34]
[1718454739688,46.6813,144.48,144.39,0.34]
[1718454739893,5.68,144.43,144.39,0.34]
[1718454740583,21.0719,144.48,144.39,0.34]
[1718454740787,38.1119,144.48,144.39,6.02]
[1718454742480,15.3919,144.48,144.39,6.02]
[1718454742684,5.68,144.45,144.39,6.02]
[1718454743783,5.68,144.44,144.39,0.34]
[1718454747178,41.001,144.48,144.39,0.34]
[1718454747380,5.68,144.44,144.39,0.34]
[1718454748182,5.68,144.43,144.39,0.34]
[1718454749482,5.68,144.44,144.39,0.34]
[1718454750781,45.7947,144.48,144.39,0.34]
[1718454750980,15.3919,144.48,144.39,6.02]
[1718454751189,5.68,144.46,144.4,5.85]
[1718454751399,5.68,144.45,144.39,6.02]
[1718454751694,5.68,144.44,144.39,6.02]
[1718454751883,5.68,144.43,144.39,0.34]
[1718454752071,5.68,144.44,144.39,0.34]
[1718454752799,40.6728,144.48,144.39,0.34]
[1718454753590,38.1119,144.48,144.39,0.34]
[1718454753785,38.1119,144.48,144.39,6.02]
[1718454753987,40.6728,144.48,144.39,0.34]
[1718454754168,45.7946,144.48,144.39,0.34]
[1718454754684,40.6728,144.48,144.39,0.34]
[1718454754885,2.5611,144.47,144.39,0.34]
[1718454755394,2.5612,144.46,144.38,22.9549]
[1718454755695,5.68,144.43,144.38,22.9549]
[1718454758993,38.1119,144.48,144.38,22.9549]
[1718454759196,5.68,144.44,144.39,0.34]
[1718454759575,5.68,144.45,144.39,6.02]
[1718454760496,5.68,144.44,144.39,6.02]
[1718454760886,5.68,144.44,144.39,0.34]
[1718454761298,5.68,144.43,144.39,0.34]
[1718454761801,5.68,144.43,144.38,22.7849]
[1718454762493,5.68,144.42,144.38,22.7849]
[1718454764406,5.68,144.43,144.38,22.7849]
[1718454766686,38.1119,144.48,144.38,122.7849]
[1718454766998,38.1119,144.48,144.39,0.68]
[1718454767206,5.68,144.44,144.39,0.68]
[1718454773411,5.68,144.43,144.39,0.17]
[1718454773583,5.68,144.43,144.38,22.7849]
[1718454776884,5.68,144.41,144.35,8.0910653]
[1718454777084,5.68,144.41,144.35,13.7710653]
[1718454777294,5.68,144.41,144.36,5.68]
[1718454777592,5.68,144.41,144.35,8.0910653]
[1718454777593,5.68,144.41,144.35,13.7710653]
[1718454778299,0.17,144.44,144.35,8.0910653]
[1718454778300,5.68,144.4,144.35,8.0910653]
[1718454778885,15.4832,144.43,144.34,16.3851]
[1718454778886,0.17,144.42,144.34,16.3851]
[1718454779211,5.68,144.39,144.34,16.3851]
[1718454779517,5.68,144.4,144.35,5.68]
[1718454780111,0.17,144.44,144.35,5.68]
[1718454780323,5.68,144.4,144.35,5.68]
[1718454780607,5.68,144.4,144.36,0.87396379]
[1718454782715,0.17,144.45,144.35,5.68]
[1718454782892,5.68,144.42,144.36,6.02]
[1718454783313,15.9128,144.47,144.37,100.0]
[1718454783616,5.68,144.42,144.38,6.9195]
[1718454783916,2.5616,144.44,144.34,22.7946]
[1718454784092,5.68,144.4,144.35,5.85]
[1718454784294,12.8073,144.45,144.36,5.68]
[1718454784513,7.6842,144.45,144.36,5.68]
[1718454784700,5.68,144.42,144.35,0.17]
[1718454784901,5.68,144.41,144.36,5.68]
[1718454785307,7.6843,144.45,144.36,5.68]
[1718454785508,5.68,144.41,144.36,5.68]
[1718454785908,15.3686,144.45,144.36,5.68]
[1718454786227,5.68,144.41,144.36,5.68]
[1718454786400,5.68,144.41,144.35,6.19]
[1718454786599,5.68,144.41,144.36,0.17]
[1718454786801,5.68,144.41,144.36,0.34]
[1718454787296,5.68,144.42,144.37,0.34]
[1718454787502,5.68,144.42,144.38,0.17]
[1718454788094,5.68,144.42,144.37,0.17]
[1718454788301,5.68,144.42,144.36,0.17]
[1718454788527,5.68,144.41,144.36,6.19]
[1718454789325,5.68,144.41,144.37,1.38140842]
[1718454791101,2.5614,144.45,144.37,1.38140842]
[1718454791429,5.68,144.41,144.37,1.38140842]
[1718454791851,0.33333335,144.4,144.37,16.1082]
[1718454792003,0.33333335,144.4,144.39,6.6654]
[1718454792205,0.33333335,144.4,144.39,7.1754]
[1718454792535,0.33333335,144.4,144.39,112.8554]
[1718454792739,0.33333335,144.4,144.39,12.8554]
[1718454793219,0.33333335,144.4,144.39,112.8554]
[1718454793835,0.33333335,144.4,144.39,7.1754]
[1718454794239,0.33333335,144.4,144.39,6.4954]
[1718454798532,0.33333335,144.4,144.37,21.7882]
[1718454798533,0.33333335,144.4,144.37,16.1082]
[1718454801143,0.33333335,144.4,144.39,0.17]
[1718454801655,0.33333335,144.4,144.39,105.85]
[1718454801851,0.33333335,144.4,144.39,141.5708653]
[1718454802852,5.68,144.52,144.42,100.0]
[1718454803031,5.68,144.5,144.44,5.85]
[1718454803223,5.68,144.5,144.44,20.8542]
[1718454803428,5.68,144.5,144.45,0.17]
[1718454803630,5.68,144.5,144.45,0.34]
[1718454804127,107.6792,144.55,144.45,0.34]
[1718454804324,28.3941525,144.57,144.45,100.34]
[1718454804541,5.68,144.53,144.47,5.68]
[1718454804833,5.68,144.52,144.48,0.17]
[1718454805031,25.2796,144.55,144.45,6.02]
[1718454805228,22.72,144.55,144.45,106.02]
[1718454805621,22.72,144.55,144.46,5.68]
[1718454805828,30.399,144.55,144.45,0.34]
[1718454806029,30.399,144.55,144.45,6.02]
[1718454806243,22.72,144.55,144.46,5.85]